bitfinex/quotes_ETHUSD_20240822
["timestamp","ask_amount","ask_price","bid_price","bid_amount"]
[1724349605392,2.367,2607.8,2607.3,8.451017]
[1724349605945,2.367,2607.8,2607.4,3.83522]
[1724349606162,2.367,2607.8,2607.5,3.83506]
[1724349606366,2.367,2607.8,2607.4,3.83523]
[1724349607292,6.20165,2607.8,2607.3,3.83526]
[1724349608801,6.20165,2607.8,2607.3,4.999245]
[1724349609103,0.10298742,2607.9,2607.5,3.969]
[1724349609601,0.10298742,2607.9,2607.6,3.83481]
[1724349610361,0.10298742,2607.9,2607.7,3.83471]
[1724349610975,0.10298742,2607.9,2607.5,11.63902]
[1724349611210,0.10298742,2607.9,2607.6,0.780407]
[1724349611412,6.23875,2607.8,2607.0,6.365]
[1724349611578,6.23875,2607.8,2607.1,3.0]
[1724349611775,6.23875,2607.8,2607.3,3.83537]
[1724349612611,2.4041,2607.8,2607.4,3.83514]
[1724349613494,2.4041,2607.8,2607.3,12.706755]
[1724349613708,2.4041,2607.8,2607.3,8.871385]
[1724349613909,6.23885,2607.8,2607.3,3.83529]
[1724349614221,2.3412,2607.7,2607.3,3.83529]
[1724349614359,6.176,2607.7,2607.3,3.83529]
[1724349614567,6.176,2607.7,2607.1,3.83559]
[1724349614568,3.8349,2607.7,2607.1,3.83559]
[1724349614895,2.3412,2607.6,2607.1,5.81641129]
[1724349615094,6.17621,2607.6,2607.1,5.81641129]
[1724349615477,2.3412,2607.4,2606.9,11.080693]
[1724349615681,2.3412,2607.4,2606.8,3.8361]
[1724349615682,6.17669,2607.3,2606.8,3.8361]
[1724349615901,2.4236,2607.2,2606.8,3.8361]
[1724349616216,2.4236,2607.2,2606.6,7.244813]
[1724349616217,3.8359,2607.0,2606.6,7.244813]
[1724349616378,2.4236,2606.9,2606.4,11.64223]
[1724349616578,0.10283022,2606.8,2606.4,11.64223]
[1724349616817,0.10283022,2606.8,2606.5,3.83647]
[1724349616969,0.10283022,2606.8,2606.6,3.83633]
[1724349617563,2.4236,2606.9,2606.4,5.133223]
[1724349617564,6.25962,2606.9,2606.4,3.969]
[1724349617788,0.10283022,2606.8,2606.4,3.969]
[1724349618014,0.10283022,2606.8,2606.4,7.80569]
[1724349618178,0.10283022,2606.8,2606.6,3.83635]
[1724349618494,2.4236,2606.9,2606.6,3.83635]
[1724349619212,2.4236,2606.9,2606.5,3.83656]
[1724349619411,2.4236,2606.9,2606.4,3.969]
[1724349619412,0.10238679,2606.8,2606.4,3.969]
[1724349619670,2.4236,2606.9,2606.4,7.8057]
[1724349619875,0.10238679,2606.7,2606.4,7.8057]
[1724349620175,0.10238679,2606.6,2606.4,8.969944]
[1724349620335,2.4236,2606.9,2606.4,8.969944]
[1724349620535,2.4236,2606.9,2606.4,7.8057]
[1724349620536,0.10238679,2606.8,2606.4,7.8057]
[1724349620732,0.10238679,2606.8,2606.4,3.969]
[1724349620733,2.4729,2606.7,2606.4,3.969]
[1724349620932,2.4729,2606.7,2606.2,3.83699]
[1724349621163,0.10238679,2606.6,2606.2,3.83699]
[1724349621363,0.10238679,2606.6,2606.2,5.41106991]
[1724349622581,0.10238679,2606.6,2606.3,3.83682]
[1724349622761,0.10238679,2606.6,2606.4,3.969]
[1724349622952,2.4729,2606.7,2606.4,3.969]
[1724349623734,0.10238679,2606.6,2606.4,3.969]
[1724349623986,2.4729,2606.7,2606.4,3.969]
[1724349624289,0.10238679,2606.6,2606.4,3.969]
[1724349624653,2.4729,2606.7,2606.4,3.969]
[1724349625284,0.10238679,2606.6,2606.4,3.969]
[1724349626385,2.4729,2606.7,2606.5,0.780577]
[1724349626540,2.3292,2606.9,2606.5,0.780577]
[1724349626884,0.10238679,2606.8,2606.5,0.780577]
[1724349627799,2.4913,2607.1,2606.5,0.780577]
[1724349627939,2.4913,2607.1,2606.7,3.969]
[1724349628142,0.10212323,2607.0,2606.7,7.80524]
[1724349629651,0.10212323,2607.0,2606.7,3.969]
[1724349629854,0.10212323,2607.0,2606.5,3.83644]
[1724349630391,2.2685,2606.9,2606.5,3.83644]
[1724349630573,0.10209656,2606.8,2606.5,3.83644]
[1724349630744,0.10209656,2606.8,2606.5,5.000667]
[1724349630949,0.10209656,2606.8,2606.5,8.837117]
[1724349631194,0.10209656,2606.8,2606.6,3.83639]
[1724349637261,0.10209656,2606.8,2606.7,7.80526]
[1724349637802,2.3943,2607.1,2606.7,7.80526]
[1724349638000,2.3943,2607.1,2606.8,3.83611]
[1724349638159,2.3019,2607.3,2607.0,3.969]
[1724349639746,2.3019,2607.3,2607.0,7.80482]
[1724349640274,2.3019,2607.3,2607.0,3.969]
[1724349640685,6.13731,2607.3,2607.0,3.969]
[1724349641051,3.83558,2607.2,2606.8,3.83601]
[1724349641288,3.83558,2607.2,2606.7,3.969]
[1724349641289,3.83579,2607.1,2606.7,3.969]
[1724349641551,6.30803,2607.0,2606.7,3.969]
[1724349641745,6.30803,2607.0,2606.5,3.83656]
[1724349642365,6.30803,2607.0,2606.6,3.8364]
[1724349642968,2.4722,2607.0,2606.6,3.8364]
[1724349643480,2.4722,2607.0,2606.7,7.80525]
[1724349643810,6.16044,2607.2,2606.8,1.164159]
[1724349644804,2.3248,2607.2,2606.9,3.83594]
[1724349646362,2.3248,2607.2,2606.8,1.164159]
[1724349646563,6.20756,2607.1,2606.6,3.8364]
[1724349647008,3.83567,2607.2,2606.4,15.050463]
[1724349647009,2.3718,2606.8,2606.4,7.80565]
[1724349647410,2.3718,2606.8,2606.4,11.6423]
[1724349647583,2.3718,2606.8,2606.5,5.00073]
[1724349647785,0.10219301,2606.7,2606.5,5.00073]
[1724349648001,2.3718,2606.8,2606.5,5.00073]
[1724349648203,0.10219301,2606.7,2606.5,5.00073]
[1724349648377,2.3718,2606.8,2606.5,5.00073]
[1724349648585,0.10219301,2606.7,2606.5,5.00073]
[1724349648918,2.3718,2606.8,2606.5,5.00073]
[1724349649398,0.10219301,2606.7,2606.6,0.60023664]
[1724349649606,2.3718,2606.8,2606.6,0.60023664]
[1724349649826,2.3745,2607.0,2606.7,0.60020351]
[1724349649995,2.3745,2607.0,2606.6,5.17692166]
[1724349650197,2.3745,2607.0,2606.6,9.01325166]
[1724349650439,2.3745,2607.0,2606.7,4.73757517]
[1724349651254,2.3745,2607.0,2606.7,0.90132517]
[1724349651606,2.3745,2607.0,2606.6,3.83626]
[1724349652011,6.21033,2607.0,2606.5,3.83655]
[1724349652251,3.83511,2607.5,2606.3,3.83676]
[1724349652252,2.251,2606.9,2606.3,3.83676]
[1724349652560,2.251,2606.9,2606.1,14.213813]
[1724349652561,3.83642,2606.6,2606.1,7.244813]
[1724349652736,2.634642,2606.5,2606.1,7.244813]
[1724349652938,2.251,2606.5,2606.1,15.050943]
[1724349653303,2.251,2606.5,2606.4,3.969]
[1724349653510,2.3187,2606.8,2606.4,3.969]
[1724349653741,2.3187,2606.8,2606.4,7.8057]
[1724349654165,6.15485,2606.8,2606.4,3.969]
[1724349655013,2.3187,2606.8,2606.4,3.969]
[1724349655852,6.15492,2606.8,2606.4,3.969]
[1724349657229,6.15492,2606.8,2606.3,3.83678]
[1724349657913,3.83627,2606.7,2606.3,3.83678]
[1724349658117,2.4409,2606.6,2606.1,15.050813]
[1724349658681,3.83672,2606.4,2606.1,11.213813]
[1724349658812,2.3965,2606.3,2605.9,3.83736]
[1724349659145,6.23337,2606.3,2605.8,3.969]
[1724349659325,2.4493,2606.1,2605.7,11.082433]
[1724349661695,2.4493,2606.1,2605.7,14.920093]
[1724349661849,2.4493,2606.1,2605.8,3.83748]
[1724349662041,2.4493,2606.1,2605.9,0.78582038]
[1724349662586,2.4493,2606.1,2605.8,7.80648]
[1724349662986,0.1016208,2606.0,2605.8,7.80648]
[1724349663994,0.1016208,2606.0,2605.8,3.969]
[1724349664493,0.1016208,2606.0,2605.8,7.80656]
[1724349667194,0.1016208,2606.0,2605.7,7.244813]
[1724349667560,6.28654,2606.1,2605.7,7.244813]
[1724349667761,0.10125421,2605.9,2605.7,7.244813]
[1724349667964,6.28654,2606.1,2605.7,11.082543]
[1724349668291,2.4493,2606.1,2605.8,3.83751]
[1724349668525,7.67329,2606.5,2605.9,3.83735]
[1724349668700,6.16573,2606.4,2605.9,3.83735]
[1724349668861,2.43025421,2606.4,2606.1,3.83705]
[1724349669289,2.43025421,2606.4,2606.1,3.83714]
[1724349669842,2.43025421,2606.4,2606.0,3.83727]
[1724349670000,2.43025421,2606.4,2606.0,7.67448]
[1724349670348,2.43025421,2606.4,2606.1,3.83715]
[1724349670555,0.10125421,2606.4,2606.2,3.83688]
[1724349670865,2.4669,2606.5,2606.1,3.969]
[1724349671066,0.09785491,2606.3,2606.0,3.83718]
[1724349671277,6.30346,2606.5,2606.0,3.83718]
[1724349671685,6.24087491,2606.4,2605.9,3.83733]
[1724349671863,6.24087491,2606.4,2605.9,7.67469]
[1724349672195,6.24087491,2606.4,2606.0,5.001649]
[1724349673103,6.24087491,2606.4,2606.0,3.83728]
[1724349673285,6.31396,2606.3,2605.8,7.80647]
[1724349673488,6.31396,2606.3,2605.8,7.80658]
[1724349673804,3.83716,2606.1,2605.6,6.83788]
[1724349674002,2.3675,2606.0,2605.6,6.83779]
[1724349674854,0.09785491,2605.9,2605.6,6.83779]
[1724349675055,0.09785491,2605.9,2605.6,9.0267613]
[1724349675800,0.09785491,2605.9,2605.6,6.0267613]
[1724349676008,0.09785491,2605.9,2605.6,3.83779]
[1724349679919,6.15566,2605.8,2605.5,3.969]
[1724349680135,2.318,2605.7,2605.3,3.83831]
[1724349680317,2.41585491,2605.7,2605.2,3.969]
[1724349680616,2.4208,2605.2,2605.1,9.98499895]
[1724349680823,2.4208,2605.2,2605.1,2.74018595]
[1724349680985,2.51865491,2605.2,2605.1,2.74018595]
[1724349681320,2.4208,2605.2,2605.1,2.74018595]
[1724349683327,3.83785,2605.7,2605.1,3.41110455]
[1724349683328,2.4897,2605.6,2605.1,3.41110455]
[1724349683638,2.4897,2605.6,2605.2,7.8074]
[1724349683826,2.4897,2605.6,2605.3,3.83832]
[1724349684124,2.4897,2605.6,2605.4,3.83817]
[1724349684427,2.4897,2605.6,2605.5,3.969]
[1724349684604,2.4897,2605.6,2605.3,3.83831]
[1724349684982,2.4897,2605.6,2605.4,3.83814]
[1724349685730,2.265,2605.8,2605.4,3.83814]
[1724349686632,2.265,2605.8,2605.4,5.002697]
[1724349686831,2.265,2605.8,2605.5,7.80695]
[1724349686989,3.83737,2606.0,2605.5,7.80695]
[1724349686990,2.3829,2606.0,2605.6,3.83787]
[1724349687626,2.3829,2606.0,2605.6,7.67567]
[1724349687789,2.3829,2606.0,2605.6,7.67561]
[1724349687989,2.3829,2606.0,2605.7,1.164461]
[1724349688191,2.3829,2606.0,2605.8,3.83758]
[1724349688492,2.4669,2606.2,2605.8,7.80658]
[1724349689433,2.3289,2606.4,2605.9,3.83732]
[1724349689638,2.3289,2606.4,2606.1,3.969]
[1724349689804,3.83634,2606.7,2606.1,3.969]
[1724349690002,3.83657,2606.5,2606.0,5.001552]
[1724349690790,7.67322,2606.5,2606.0,5.001552]
[1724349691005,3.83672,2606.4,2606.0,5.001552]
[1724349691237,7.67327,2606.5,2606.0,5.001552]
[1724349691592,3.83672,2606.4,2606.0,1.164382]
[1724349692797,7.67354,2606.4,2606.0,1.164382]
[1724349692997,2.4257,2606.2,2605.8,7.80649]
[1724349693197,2.4257,2606.2,2605.9,3.83742]
[1724349693627,0.09704266,2606.1,2605.9,3.83742]
[1724349694007,0.09704266,2606.1,2605.8,7.80649]
[1724349694209,0.09704266,2606.1,2605.8,3.969]
[1724349694428,6.26278,2606.2,2605.8,3.969]
[1724349694697,6.26278,2606.2,2605.6,3.83781]
[1724349694896,0.09741011,2606.1,2605.8,3.969]
[1724349695378,0.09741011,2606.1,2605.8,7.80657]
[1724349696748,0.09741011,2606.1,2605.8,3.969]
[1724349697061,0.09741011,2606.1,2606.0,3.83729]
[1724349697379,7.67277,2606.7,2606.1,3.83702]
[1724349697380,2.3649,2606.5,2606.1,3.83702]
[1724349697574,2.3649,2606.5,2606.1,7.80602]
[1724349698273,2.3649,2606.5,2606.2,3.83698]
[1724349698458,7.67271,2606.7,2606.2,5.001307]
[1724349698459,6.10294,2606.7,2606.2,5.001307]
[1724349698663,2.2666,2606.7,2606.2,5.001257]
[1724349698866,2.2666,2606.7,2606.4,3.83664]
[1724349699087,2.2666,2606.7,2606.4,8.6894197]
[1724349699251,6.17752,2607.0,2606.5,3.83654]
[1724349700885,2.3417,2607.0,2606.6,3.83639]
[1724349701081,2.3417,2607.0,2606.7,0.383639]
[1724349702086,6.32323,2607.2,2606.7,4.219899]
[1724349702288,6.32323,2607.2,2606.8,3.91281568]
[1724349702289,2.4877,2607.2,2606.8,3.91281568]
[1724349702439,2.4877,2607.2,2606.8,3.83604]
[1724349702638,6.32324,2607.2,2606.7,0.383639]
[1724349702839,6.32324,2607.2,2606.6,3.83631]
[1724349703151,0.09477711,2607.1,2606.6,3.83631]
[1724349703467,2.3905,2607.0,2606.5,3.83655]
[1724349703875,0.09481584,2606.9,2606.6,3.83636]
[1724349704394,2.3905,2607.0,2606.6,3.83636]
[1724349704972,0.09481584,2606.9,2606.6,3.83636]
[1724349705787,0.09481584,2606.9,2606.7,3.83626]
[1724349706287,0.09481584,2606.9,2606.7,3.83618]
[1724349706601,0.09481584,2606.9,2606.7,4.71656006]
[1724349706743,0.09481584,2606.9,2606.7,8.55274006]
[1724349706944,2.2838,2607.2,2606.7,4.71656006]
[1724349707152,2.2838,2607.2,2606.9,7.67183]
[1724349707519,2.2838,2607.2,2606.9,3.83589]
[1724349707708,2.2838,2607.2,2606.9,7.67178]
[1724349708149,2.2838,2607.2,2606.9,3.83589]
[1724349708667,0.09481584,2607.1,2606.9,3.83589]
[1724349710920,2.2838,2607.2,2606.9,3.83589]
[1724349711304,0.09526781,2607.0,2606.9,3.83589]
[1724349711524,2.2838,2607.2,2606.9,5.08803301]
[1724349711687,0.09526781,2607.1,2606.9,3.83589]
[1724349711883,0.09526781,2607.1,2606.7,8.68550006]
[1724349712217,0.09526781,2607.0,2606.7,8.68550006]
[1724349712586,2.2838,2607.2,2606.7,8.68550006]
[1724349712785,0.09526781,2606.9,2606.8,3.8361]
[1724349712986,2.2838,2607.2,2606.9,3.83597]
[1724349713626,0.09526781,2607.1,2606.9,3.83597]
[1724349714052,0.09526781,2607.1,2606.7,8.68550006]
[1724349714201,2.4001,2607.0,2606.6,3.83641]
[1724349714402,6.23598,2607.0,2606.5,11.081273]
[1724349714942,0.09526781,2606.9,2606.5,11.081273]
[1724349715154,3.83641,2606.6,2606.5,7.244813]
[1724349715459,2.4058,2606.5,2605.8,3.969]
[1724349715635,2.4058,2606.5,2606.3,3.83683]
[1724349715838,0.09533881,2606.4,2606.3,3.83683]
[1724349715998,0.09533881,2606.4,2606.3,4.617413]
[1724349716318,0.09533881,2606.4,2606.3,8.454263]
[1724349716519,2.4058,2606.8,2606.4,3.8367]
[1724349716846,2.4058,2606.8,2606.5,3.83654]
[1724349717053,2.4058,2606.8,2606.5,7.67297]
[1724349717252,2.4058,2606.8,2606.5,3.83645]
[1724349717620,2.4058,2606.8,2606.6,3.83641]
[1724349718648,6.19967,2607.2,2606.7,3.83626]
[1724349719152,10.03533,2607.2,2606.6,3.83641]
[1724349719350,6.19967,2607.2,2606.6,7.67274]
[1724349719659,10.03531,2607.2,2606.6,5.33136193]
[1724349719860,6.19967,2607.2,2606.6,9.16769193]
[1724349720092,6.19967,2607.2,2606.7,3.83626]
[1724349720853,2.3641,2607.2,2606.9,3.83596]
[1724349721021,2.3641,2607.2,2607.0,0.383596]
[1724349722365,0.0953517,2607.1,2606.9,3.83596]
[1724349724067,0.0953517,2607.1,2607.0,3.83582]
[1724349726395,2.391,2607.4,2607.0,3.83582]
[1724349726674,0.09547433,2607.1,2607.0,3.83582]
[1724349726856,2.391,2607.4,2607.0,3.83582]
[1724349727061,2.391,2607.4,2607.1,0.767172]
[1724349727240,0.09547433,2607.3,2607.1,3.83567]
[1724349727649,0.09547433,2607.3,2606.9,7.67173]
[1724349728023,0.09547433,2607.3,2607.0,3.83579]
[1724349728858,0.09547433,2607.3,2607.2,3.83553]
[1724349729073,0.09547433,2607.3,2607.2,4.602649]
[1724349729987,0.09547433,2607.3,2607.2,0.767119]
[1724349730282,0.09547433,2607.3,2607.1,3.83566]
[1724349731256,0.09547433,2607.3,2607.2,3.83553]
[1724349731792,0.09547433,2607.3,2607.2,7.67106]
[1724349731987,2.3061,2608.1,2607.5,3.83509]
[1724349732196,2.3061,2608.1,2607.9,3.969]
[1724349733478,3.83385,2608.4,2607.9,3.969]
[1724349733479,2.3117,2608.4,2608.0,3.83425]
[1724349734659,2.3412,2608.3,2607.7,3.83479]
[1724349734896,2.3412,2607.9,2607.3,3.969]
[1724349735192,3.83474,2607.8,2607.3,7.80431]
[1724349735597,2.456,2607.5,2607.0,7.80472]
[1724349735932,2.456,2607.5,2607.1,3.83558]
[1724349736973,2.456,2607.5,2607.0,7.80472]
[1724349737169,3.83524,2607.4,2606.8,3.83598]
[1724349737551,2.456,2607.5,2607.0,3.83572]
[1724349738175,0.09651299,2607.4,2607.0,3.83572]
[1724349739442,0.09651299,2607.4,2607.0,7.80472]
[1724349740134,0.09651299,2607.4,2607.2,7.67093]
[1724349740352,2.456,2607.5,2607.2,3.83543]
[1724349740583,0.09651299,2607.3,2607.2,3.83543]
[1724349740764,2.456,2607.5,2607.2,3.83543]
[1724349741101,0.09657751,2607.3,2607.2,3.83543]
[1724349741281,2.456,2607.5,2607.2,3.83543]
[1724349741464,0.09657751,2607.3,2607.2,8.834886]
[1724349741798,2.3612,2607.8,2607.3,6.969]
[1724349742112,2.3612,2608.1,2607.6,3.969]
[1724349742250,2.3612,2608.5,2607.9,3.969]
[1724349742450,2.3612,2608.5,2608.0,3.83423]
[1724349742698,6.19485,2608.5,2608.0,3.83423]
[1724349744501,6.19485,2608.5,2607.9,3.969]
[1724349744965,6.19485,2608.5,2607.9,3.83448]
[1724349745164,7.197689,2608.5,2607.9,3.83448]
[1724349745365,6.19485,2608.5,2607.9,3.83448]
[1724349747270,3.83378,2608.4,2607.9,3.83448]
[1724349747564,3.83354,2608.6,2607.7,0.3969]
[1724349747565,2.3889,2608.3,2607.7,0.3969]
[1724349747861,3.83414,2608.2,2607.7,3.0]
[1724349748180,2.2538,2608.1,2607.6,3.969]
[1724349748496,3.83354,2608.6,2607.0,7.80473]
[1724349748497,2.2538,2607.9,2607.0,7.80473]
[1724349748696,2.2538,2607.7,2607.2,3.83543]
[1724349748905,2.2538,2607.7,2607.2,7.67087]
[1724349749056,2.2538,2607.7,2607.2,3.83543]
[1724349749255,2.2538,2607.7,2607.3,3.83536]
[1724349749451,2.2538,2607.7,2607.2,4.615873]
[1724349749452,2.2538,2607.7,2607.4,3.83523]
[1724349750009,0.09505675,2607.6,2607.5,3.83509]
[1724349750183,2.2538,2608.2,2607.5,3.83509]
[1724349750366,0.09505675,2607.6,2607.5,3.83509]
[1724349750695,3.83421,2608.1,2607.6,3.83492]
[1724349751407,7.66852,2608.1,2607.6,3.83492]
[1724349751624,7.6685,2608.1,2607.6,3.83492]
[1724349751794,8.7290702,2608.1,2607.4,7.67032]
[1724349752136,4.8947802,2608.1,2607.6,3.83493]
[1724349752792,3.83421,2608.1,2607.6,3.83493]
[1724349752998,0.09505675,2608.0,2607.6,3.83493]
[1724349753194,0.09505675,2608.0,2607.4,7.67022]
[1724349753428,3.92941675,2608.0,2607.5,3.83507]
[1724349753626,2.2538,2607.9,2607.5,3.83507]
[1724349753974,0.09505675,2607.8,2607.5,3.83507]
[1724349754825,0.09505675,2607.8,2607.4,3.83509]
[1724349755031,2.2538,2607.7,2607.2,3.8355]
[1724349755229,6.08874,2607.7,2607.2,3.8355]
[1724349755432,6.08874,2607.7,2607.2,3.83546]
[1724349755433,0.09505675,2607.6,2607.2,3.83546]
[1724349757913,0.09505675,2607.6,2607.3,3.83533]
[1724349759320,0.09505675,2607.6,2607.5,7.67018]
[1724349759834,2.399,2607.9,2607.6,3.83489]
[1724349759983,2.399,2607.9,2607.7,4.601778]
[1724349760191,6.23308,2608.2,2607.7,4.601778]
[1724349760385,3.83422,2608.1,2607.7,4.601778]
[1724349760833,3.83422,2608.1,2607.7,0.766998]
[1724349761436,3.83422,2608.1,2607.6,7.80392]
[1724349765518,7.66855,2608.1,2607.6,7.80392]
[1724349765685,3.83422,2608.1,2607.6,7.80392]
[1724349765888,3.83422,2608.1,2607.6,7.80385]
[1724349766130,3.83422,2608.1,2607.6,11.63872]
[1724349766337,3.83422,2608.1,2607.6,12.802592]
[1724349766727,3.83422,2608.1,2607.7,3.83479]
[1724349767759,2.399,2608.2,2607.8,3.83459]
[1724349767909,0.09503104,2608.0,2607.9,3.8345]
[1724349768116,6.33046,2608.4,2607.9,8.5704]
[1724349768337,0.09503104,2608.0,2607.9,8.5704]
[1724349768544,2.4967,2608.4,2608.0,3.83433]
[1724349770146,3.8337,2608.5,2608.0,7.66861]
[1724349770438,3.8337,2608.5,2608.1,5.074632]
[1724349770575,3.8337,2608.5,2608.1,1.240452]
[1724349770987,3.8337,2608.5,2608.1,5.074652]
[1724349771182,2.3889,2608.6,2608.1,5.074652]
[1724349771355,6.22237,2608.6,2608.1,5.074652]
[1724349772091,10.05593,2608.6,2608.1,5.074652]
[1724349772292,3.83362,2608.5,2608.0,3.83435]
[1724349774365,6.22237,2608.6,2608.1,3.83419]
[1724349774689,6.22237,2608.6,2608.0,3.83435]
[1724349774690,6.22237,2608.6,2608.2,3.83405]
[1724349775765,2.3889,2608.6,2608.2,3.83405]
[1724349776120,3.83326,2608.8,2608.3,4.217315]
[1724349776121,6.28456,2608.8,2608.3,4.217315]
[1724349776264,10.11787,2608.8,2608.3,4.217315]
[1724349776472,6.28456,2608.8,2608.3,4.217315]
[1724349776668,6.28456,2608.8,2608.4,3.83376]
[1724349776852,6.28456,2608.8,2608.5,0.4217165]
[1724349777747,2.4513,2608.8,2608.5,0.4217165]
[1724349777950,3.83297,2609.0,2608.5,8.2242565]
[1724349777951,6.28427,2609.0,2608.5,8.2242565]
[1724349778207,2.4513,2609.0,2608.6,3.83346]
[1724349778404,2.4513,2609.3,2608.8,3.969]
[1724349778809,2.4513,2609.3,2609.0,3.83283]
[1724349778954,6.28339,2609.6,2609.0,7.66562]
[1724349779151,6.28339,2609.6,2609.0,8.829052]
[1724349779398,6.28339,2609.6,2609.1,3.969]
[1724349779399,2.4513,2609.6,2609.1,3.969]
[1724349779806,6.28301,2609.8,2609.2,3.83259]
[1724349780104,0.09558586,2609.5,2609.2,3.83259]
[1724349780248,6.28301,2609.8,2609.2,5.3415042]
[1724349780453,0.09558586,2609.4,2609.1,3.969]
[1724349780681,2.3077,2609.3,2608.8,11.077903]
[1724349781076,0.09573406,2609.2,2608.8,11.077853]
[1724349781267,0.09573406,2609.2,2608.9,5.02296707]
[1724349781600,3.83231,2609.4,2608.9,5.02296707]
[1724349781791,6.29361,2609.6,2608.9,5.02296707]
[1724349781792,0.09573406,2609.1,2609.0,3.83287]
[1724349782111,2.4616,2609.6,2609.0,3.83279]
[1724349782276,2.4616,2609.6,2609.2,3.83256]
[1724349782455,3.83175,2609.8,2608.7,3.83331]
[1724349782456,2.2919,2609.2,2608.7,3.83331]
[1724349783290,0.09575339,2609.1,2608.8,3.83316]
[1724349783908,0.09575339,2609.1,2608.8,7.66622]
[1724349784066,0.09575339,2609.1,2608.9,3.83302]
[1724349784261,3.8323,2609.4,2608.9,3.83302]
[1724349784262,6.296,2609.4,2608.9,3.83302]
[1724349784469,0.09575339,2609.0,2608.9,8.432658]
[1724349784689,2.4637,2609.7,2609.1,3.83273]
[1724349784891,2.4637,2609.7,2609.3,3.83235]
[1724349785167,2.4637,2609.7,2609.3,4.612485]
[1724349785356,0.0961208,2609.6,2609.4,3.83223]
[1724349785561,2.4637,2609.7,2609.4,3.83223]
[1724349785791,0.0961208,2609.6,2609.4,3.83223]
[1724349788006,0.0961208,2609.6,2609.4,7.66442]
[1724349788193,2.4069,2609.9,2609.5,4.6766055]
[1724349788391,6.175,2610.0,2609.5,4.6766055]
[1724349789510,6.175,2610.0,2609.5,0.8444555]
[1724349789876,2.3435,2610.0,2609.5,0.8444555]
[1724349790399,2.2817,2610.3,2609.8,3.83161]
[1724349790705,2.2817,2610.3,2609.5,0.8444555]
[1724349790706,3.83112,2610.2,2609.5,11.9213985]
[1724349790904,3.83141,2610.1,2609.5,11.076943]
[1724349791104,3.83112,2610.2,2609.5,11.076943]
[1724349791105,3.83141,2610.0,2609.5,11.076943]
[1724349791463,2.2529,2609.9,2609.5,7.244813]
[1724349791666,2.2529,2609.9,2609.5,11.076953]
[1724349792012,2.2529,2609.9,2609.5,13.0427828]
[1724349792168,2.2529,2609.9,2609.5,9.2106428]
[1724349792368,2.2529,2609.9,2609.5,7.244813]
[1724349792963,2.2529,2609.9,2609.5,11.076933]
[1724349793400,6.12699,2610.2,2609.7,3.969]
[1724349793754,2.2958,2611.0,2610.1,3.969]
[1724349794047,3.83034,2610.8,2610.1,3.83117]
[1724349794348,3.83034,2610.8,2610.1,3.83114]
[1724349794349,3.83028,2610.8,2610.1,3.83114]
[1724349794557,2.3737,2610.5,2610.0,7.244813]
[1724349794905,0.09401298,2610.4,2610.0,7.244813]
[1724349795253,2.3737,2610.3,2609.7,11.076643]
[1724349795402,2.46771298,2610.3,2609.7,11.076643]
[1724349795631,2.46771298,2610.3,2609.7,7.244813]
[1724349795804,3.83119,2610.2,2609.7,7.244813]
[1724349796019,3.83154,2610.0,2609.7,7.244813]
[1724349796210,3.83187,2609.7,2609.2,7.244813]
[1724349796452,2.4257,2609.5,2608.9,7.244813]
[1724349796951,2.4257,2609.5,2608.9,11.077823]
[1724349797105,0.09389687,2609.4,2608.9,11.077823]
[1724349797302,0.09389687,2609.4,2608.7,7.80227]
[1724349797303,3.92624687,2609.4,2608.7,7.80227]
[1724349797517,3.83272,2609.2,2608.6,3.83347]
[1724349797941,0.09366459,2609.1,2608.7,3.83331]
[1724349798315,3.83245,2609.3,2608.7,3.83331]
[1724349798515,0.09366459,2609.0,2608.7,3.83331]
[1724349798714,3.8326,2609.2,2608.6,3.83345]
[1724349798944,0.09366459,2608.9,2608.5,3.8336]
[1724349799170,3.8326,2609.2,2608.6,3.0]
[1724349799305,0.09366459,2608.8,2608.6,3.0]
[1724349799503,3.8326,2609.2,2608.6,3.0]
[1724349799740,0.09366459,2608.7,2608.6,6.83337]
[1724349799903,2.4257,2609.5,2608.6,3.07666089]
[1724349800249,0.09366459,2609.4,2608.7,4.44565179]
[1724349800552,2.4257,2609.5,2608.7,4.44565179]
[1724349800847,0.09338706,2609.4,2609.0,7.80187]
[1724349801014,6.14781,2609.8,2609.0,7.80187]
[1724349801347,0.09338706,2609.3,2609.0,12.645667]
[1724349801552,3.83204,2609.6,2608.8,3.8331]
[1724349801732,0.09338706,2609.2,2608.6,3.83344]
[1724349802058,0.09347097,2609.1,2608.6,3.83344]
[1724349802224,3.83253,2609.3,2608.7,3.83332]
[1724349802423,0.09347097,2609.0,2608.7,3.83332]
[1724349802738,3.83244,2609.3,2608.7,3.83332]
[1724349802901,0.09347097,2608.9,2608.7,5.01643562]
[1724349803106,3.83244,2609.3,2608.7,5.01643562]
[1724349803755,0.09347097,2609.2,2608.7,5.01643562]
[1724349804910,0.09347097,2609.2,2608.6,3.83344]
[1724349804911,3.92619097,2609.2,2608.6,3.83344]
[1724349805535,6.23193,2609.1,2608.5,5.523437]
[1724349805740,6.23193,2609.1,2608.5,3.83358]
[1724349805908,0.09303208,2609.0,2608.5,3.83358]
[1724349806304,0.09303208,2609.0,2608.6,3.83344]
[1724349806905,0.09303208,2609.0,2608.4,11.078523]
[1724349807154,3.83314,2608.9,2608.4,11.078523]
[1724349807511,0.09298044,2608.8,2608.4,11.078523]
[1724349808061,2.4602,2608.7,2608.2,3.83398]
[1724349808363,2.4602,2608.7,2608.1,19.694813]
[1724349808364,3.83355,2608.6,2608.1,19.694813]